bitfinex/quotes_SOLUSD_20240825
["timestamp","ask_amount","ask_price","bid_price","bid_amount"]
[1724584436986,16.3758,157.65,157.6,4.16768509]
[1724584437167,16.3758,157.65,157.61,4.16768509]
[1724584437368,16.3758,157.65,157.57,4.16768509]
[1724584437573,16.3758,157.65,157.56,1.26885114]
[1724584437574,16.3758,157.65,157.58,5.43653572]
[1724584437778,16.3758,157.65,157.59,4.16768509]
[1724584437993,16.3758,157.65,157.6,5.43653598]
[1724584438161,6.0036,157.66,157.61,5.43629202]
[1724584438364,6.0036,157.66,157.62,4.16768509]
[1724584438670,6.0036,157.66,157.63,4.16768509]
[1724584438857,6.0036,157.66,157.64,4.16768509]
[1724584439062,6.0036,157.66,157.65,4.16768509]
[1724584440880,6.0036,157.66,157.65,4.16340951]
[1724584441282,6.0036,157.66,157.62,3.98679348]
[1724584441486,6.0036,157.66,157.63,3.98679348]
[1724584441672,6.0036,157.66,157.65,4.16547471]
[1724584444004,6.0036,157.66,157.65,6.22687049]
[1724584444670,6.0036,157.66,157.65,6.22691219]
[1724584444871,16.3758,157.69,157.65,6.22691219]
[1724584445100,16.3758,157.69,157.66,6.22691219]
[1724584445302,16.3758,157.69,157.67,2.06105905]
[1724584445469,16.3758,157.69,157.68,2.0608689]
[1724584445667,6.5351,157.7,157.68,2.0608689]
[1724584445885,6.5351,157.7,157.62,4.1655104]
[1724584446086,6.5351,157.7,157.63,6.22620981]
[1724584446277,6.5351,157.7,157.64,6.22620981]
[1724584446579,6.5351,157.7,157.65,6.22620981]
[1724584446780,6.5351,157.7,157.66,6.22620981]
[1724584447094,6.5351,157.7,157.67,6.22620981]
[1724584447302,6.5351,157.7,157.68,2.06069941]
[1724584447476,6.5351,157.7,157.62,6.22620981]
[1724584447792,6.5351,157.7,157.63,7.49403913]
[1724584448095,6.5351,157.7,157.64,6.22570781]
[1724584448297,15.5707,157.73,157.65,6.22570781]
[1724584448592,6.5351,157.75,157.66,21.38650781]
[1724584448906,16.3780251,157.78,157.67,51.22570781]
[1724584449192,16.3780251,157.78,157.68,7.49070164]
[1724584449393,1.39356982,157.77,157.69,6.22286153]
[1724584449570,16.3780251,157.78,157.7,7.49085644]
[1724584449887,16.3780251,157.78,157.71,7.49083381]
[1724584450091,16.3780251,157.78,157.72,2.06071348]
[1724584450295,16.3780251,157.78,157.68,7.49085533]
[1724584450595,16.3780251,157.78,157.69,51.22286153]
[1724584450770,16.3780251,157.78,157.7,1.26776947]
[1724584450964,16.3780251,157.78,157.69,45.0]
[1724584451271,16.3780251,157.78,157.7,2.05967803]
[1724584451472,16.3780251,157.78,157.7,6.22347509]
[1724584451784,16.3780251,157.78,157.7,4.16379706]
[1724584452093,1.39356982,157.77,157.7,4.16379706]
[1724584452397,16.3780251,157.78,157.7,4.16379706]
[1724584452570,0.8073251,157.78,157.7,4.16379706]
[1724584452892,0.8073251,157.78,157.71,2.85461974]
[1724584453794,0.8073251,157.78,157.72,7.80735718]
[1724584453970,0.8073251,157.78,157.73,1.26774478]
[1724584455186,0.8073251,157.78,157.72,7.80735718]
[1724584455496,0.8073251,157.78,157.73,4.91220583]
[1724584455697,0.8073251,157.78,157.73,3.64448629]
[1724584455873,0.8073251,157.78,157.74,1.26771073]
[1724584456075,0.8073251,157.78,157.72,5.74734848]
[1724584456384,0.8073251,157.78,157.72,1.5865918]
[1724584456680,0.8073251,157.78,157.73,1.26764397]
[1724584456873,0.8073251,157.78,157.74,1.26765708]
[1724584457192,0.8073251,157.78,157.72,1.5865918]
[1724584458005,0.8073251,157.78,157.73,15.1608]
[1724584458193,0.8073251,157.78,157.75,6.115]
[1724584458496,0.8073251,157.78,157.76,9.51534399]
[1724584458706,0.8073251,157.78,157.77,1.26718373]
[1724584458994,0.8073251,157.78,157.77,9.51522542]
[1724584459296,6.5351,157.9,157.77,54.51522542]
[1724584459500,6.5351,157.9,157.78,8.24804169]
[1724584459671,6.5351,157.9,157.79,1.26711584]
[1724584459873,6.5351,157.9,157.8,1.26711598]
[1724584461279,6.5351,157.9,157.8,16.42791598]
[1724584461483,15.5707,157.91,157.8,16.42791598]
[1724584461692,15.5707,157.91,157.81,45.0]
[1724584463205,1.39356982,157.9,157.81,45.0]
[1724584463500,16.96426982,157.91,157.81,45.0]
[1724584463713,16.96426982,157.91,157.8,23.40884169]
[1724584464000,15.5707,157.91,157.81,1.26682986]
[1724584464376,15.5707,157.91,157.81,9.51487155]
[1724584465675,46.39356982,157.9,157.81,8.24804169]
[1724584466003,45.0,157.9,157.82,1.26695104]
[1724584466215,45.0,157.9,157.83,1.26694753]
[1724584467217,1.39356982,157.89,157.8,15.1608]
[1724584468321,15.5707,157.91,157.8,15.1608]
[1724584468521,1.39356982,157.9,157.8,15.1608]
[1724584468707,45.0,157.9,157.8,15.1608]
[1724584468908,45.0,157.9,157.81,1.26703849]
[1724584475012,1.39356982,157.89,157.8,15.1608]
[1724584475398,45.0,157.9,157.81,1.26703306]
[1724584475794,7.57716982,157.89,157.76,15.6697]
[1724584476011,45.0,157.88,157.76,15.6697]
[1724584476209,1.39356982,157.87,157.76,15.6697]
[1724584478092,1.39356982,157.87,157.72,2.7952076]
[1724584478093,16.3327,157.86,157.72,15.6697]
[1724584478315,46.39356982,157.85,157.72,15.6697]
[1724584478997,6.1836,157.84,157.72,15.6697]
[1724584479223,46.39356982,157.83,157.72,15.6697]
[1724584479530,16.3327,157.81,157.68,22.2947546]
[1724584479753,45.0,157.8,157.69,1.26770404]
[1724584480026,1.39356982,157.79,157.68,22.2947546]
[1724584480416,45.0,157.8,157.69,1.26784441]
[1724584480635,1.39356982,157.79,157.68,22.2947546]
[1724584480804,1.39356982,157.79,157.69,20.0]
[1724584481227,1.39356982,157.79,157.68,22.2947546]
[1724584481643,45.0,157.8,157.68,22.2947546]
[1724584482145,1.39356982,157.79,157.68,22.2947546]
[1724584482347,45.0,157.8,157.69,21.26784791]
[1724584486852,45.0,157.8,157.69,20.0]
[1724584487353,45.0,157.8,157.7,1.26784329]
[1724584487659,45.0,157.8,157.69,20.0]
[1724584487660,45.0,157.8,157.71,1.26784172]
[1724584488452,6.1644,157.79,157.7,1.26784332]
[1724584488654,45.0,157.78,157.7,1.26784332]
[1724584490628,45.0,157.78,157.68,6.62520681]
[1724584490629,1.39356982,157.77,157.68,6.62520681]
[1724584490829,6.1644,157.74,157.68,13.50949544]
[1724584491032,1.39356982,157.73,157.65,6.88428863]
[1724584491362,1.39356982,157.73,157.63,6.62722964]
[1724584492059,46.39356982,157.73,157.63,6.62722964]
[1724584492435,1.39356982,157.72,157.63,6.62722964]
[1724584496463,45.0,157.73,157.63,6.62722964]
[1724584496630,45.0,157.73,157.64,1.26839203]
[1724584496837,45.0,157.73,157.65,1.26839222]
[1724584497741,1.39356982,157.72,157.63,6.62722964]
[1724584504164,15.3358,157.71,157.63,6.62722964]
[1724584504373,1.39356982,157.7,157.63,6.62722964]
[1724584505457,15.3358,157.71,157.64,1.26850184]
[1724584505649,15.3358,157.71,157.63,13.99416022]
[1724584507663,15.3358,157.71,157.64,1.26839932]
[1724584507853,15.3358,157.71,157.65,1.26835093]
[1724584510168,15.3358,157.71,157.63,13.99416022]
[1724584511965,15.3358,157.71,157.64,1.26836253]
[1724584512264,15.3358,157.71,157.64,15.25484518]
[1724584512467,15.3358,157.71,157.65,45.0]
[1724584512670,15.3358,157.71,157.66,1.26810946]
[1724584513456,6.1644,157.74,157.66,1.26810946]
[1724584514365,6.1644,157.74,157.66,21.26810946]
[1724584515742,6.1644,157.74,157.67,1.26806955]
[1724584515943,6.1644,157.74,157.68,1.26806708]
[1724584518046,6.1644,157.74,157.68,2.85487177]
[1724584518244,6.1644,157.74,157.68,4.91353846]
[1724584519647,6.1644,157.74,157.68,9.07522918]
[1724584520157,6.1644,157.74,157.68,13.05806022]
[1724584520481,6.1644,157.74,157.69,1.58680469]
[1724584520781,6.1644,157.74,157.7,2.854675]
[1724584521076,6.1644,157.74,157.71,2.85463402]
[1724584521251,6.1644,157.74,157.72,1.58680469]
[1724584521448,6.1644,157.74,157.73,1.26782681]
[1724584521763,6.1644,157.74,157.73,2.8546315]
[1724584521950,6.1644,157.74,157.73,1.26782681]
[1724584522153,6.1644,157.74,157.73,2.8546315]
[1724584522475,15.3358,157.75,157.73,1.58645172]
[1724584522649,15.3358,157.75,157.74,1.58645172]
[1724584522848,6.0293,157.78,157.74,1.58645172]
[1724584523049,6.0293,157.78,157.74,1.26774646]
[1724584523267,6.0293,157.78,157.75,1.58645172]
[1724584523855,6.0293,157.78,157.76,1.26760485]
[1724584525054,6.0293,157.78,157.75,2.85400255]
[1724584525258,6.0293,157.78,157.75,1.26755083]
[1724584525752,6.0293,157.78,157.71,4.15969205]
[1724584525958,6.0293,157.78,157.72,49.91127199]
[1724584526180,6.0293,157.78,157.73,7.62417413]
[1724584526360,6.0293,157.78,157.74,3.64371914]
[1724584526562,6.0293,157.78,157.75,1.58643096]
[1724584526765,6.0293,157.78,157.76,1.26755259]
[1724584527356,6.0293,157.78,157.75,1.58643008]
[1724584527681,6.0293,157.78,157.74,2.05728818]
[1724584527863,6.0293,157.78,157.75,1.58641182]
[1724584528047,6.0293,157.78,157.72,2.05728818]
[1724584528248,6.0293,157.78,157.73,3.64370491]
[1724584528466,6.0293,157.78,157.74,3.64370491]
[1724584528664,6.0293,157.78,157.71,6.03774317]
[1724584528878,6.0293,157.78,157.72,1.58642225]
[1724584529077,6.0293,157.78,157.73,1.58642225]
[1724584529256,6.0293,157.78,157.74,1.58642225]
[1724584529457,6.0293,157.78,157.75,1.58642225]
[1724584529665,6.0293,157.78,157.71,5.56687724]
[1724584529866,6.0293,157.78,157.72,1.58642225]
[1724584529867,7.42286982,157.78,157.72,1.58642225]
[1724584530062,7.42286982,157.78,157.73,1.58642225]
[1724584530262,7.42286982,157.78,157.68,7.87348522]
[1724584530263,7.42286982,157.78,157.74,1.58643241]
[1724584530456,7.42286982,157.78,157.75,1.58643241]
[1724584530656,7.42286982,157.78,157.7,5.5668874]
[1724584530884,7.42286982,157.78,157.71,1.58643241]
[1724584531081,7.42286982,157.78,157.72,1.58643241]
[1724584531257,7.42286982,157.78,157.73,1.58643241]
[1724584531459,7.42286982,157.78,157.74,1.58643241]
[1724584531781,6.0293,157.78,157.71,1.26802244]
[1724584531983,6.0293,157.78,157.72,1.5864427]
[1724584532169,6.0293,157.78,157.73,1.5864427]
[1724584532170,1.39356982,157.77,157.73,1.5864427]
[1724584532360,1.39356982,157.77,157.74,1.5864427]
[1724584532563,1.39356982,157.77,157.75,1.5864427]
[1724584532762,1.39356982,157.77,157.7,5.56689769]
[1724584533083,1.39356982,157.77,157.68,7.87348522]
[1724584533084,1.39356982,157.77,157.71,1.5864427]
[1724584533264,1.39356982,157.77,157.72,1.5864427]
[1724584533464,1.39356982,157.77,157.73,1.5864427]
[1724584533768,1.39356982,157.77,157.74,1.5864427]
[1724584533968,1.39356982,157.77,157.75,1.5864427]
[1724584534164,1.39356982,157.77,157.7,5.56689769]
[1724584534359,6.0293,157.78,157.71,2.85439618]
[1724584534560,6.0293,157.78,157.72,1.5864427]
[1724584534860,6.0293,157.78,157.73,2.85420898]
[1724584535084,6.0293,157.78,157.74,1.58640601]
[1724584535586,6.0293,157.78,157.75,1.58640601]
[1724584535772,6.0293,157.78,157.72,1.58640601]
[1724584535969,6.0293,157.78,157.73,1.58640601]
[1724584536172,6.0293,157.78,157.71,3.98087198]
[1724584536173,6.0293,157.78,157.74,1.58640601]
[1724584536379,6.0293,157.78,157.75,1.58640601]
[1724584536572,6.0293,157.78,157.71,5.56727799]
[1724584536773,6.0293,157.78,157.72,1.58640601]
[1724584536967,6.0293,157.78,157.73,1.58640601]
[1724584537167,6.0293,157.78,157.7,3.98087198]
[1724584537168,6.0293,157.78,157.74,1.58640601]
[1724584537360,6.0293,157.78,157.75,1.58640601]
[1724584537561,6.0293,157.78,157.71,1.58640601]
[1724584537762,6.0293,157.78,157.72,1.58640601]
[1724584537984,6.0293,157.78,157.73,1.58640601]
[1724584538262,6.0293,157.78,157.74,1.58640601]
[1724584538470,6.0293,157.78,157.75,1.58640601]
[1724584538669,6.0293,157.78,157.72,1.58640601]
[1724584538870,6.0293,157.78,157.73,1.58640601]
[1724584539165,6.0293,157.78,157.74,1.58640601]
[1724584539362,6.0293,157.78,157.75,1.58640601]
[1724584539557,6.0293,157.78,157.71,3.98087198]
[1724584539759,6.0293,157.78,157.72,1.58641196]
[1724584539989,6.0293,157.78,157.73,1.58641196]
[1724584540265,6.0293,157.78,157.74,1.58641196]
[1724584540480,6.0293,157.78,157.75,1.58641196]
[1724584540673,6.0293,157.78,157.7,25.56728394]
[1724584540882,6.0293,157.78,157.71,55.22096672]
[1724584541061,6.0293,157.78,157.72,5.56728394]
[1724584541264,6.0293,157.78,157.73,2.85403631]
[1724584541490,6.0293,157.78,157.74,2.85403632]
[1724584541786,6.0293,157.78,157.75,1.58641196]
[1724584541998,6.0293,157.78,157.73,1.58641196]
[1724584542165,6.0293,157.78,157.74,1.58641196]
[1724584542368,6.0293,157.78,157.75,1.58641196]
[1724584542567,6.0293,157.78,157.73,1.58641196]
[1724584542789,6.0293,157.78,157.74,1.58641196]
[1724584544277,6.0293,157.78,157.74,1.58641196]
[1724584544478,6.0293,157.78,157.75,2.85400489]
[1724584544805,6.0293,157.78,157.75,1.26759293]
[1724584545277,6.0293,157.78,157.75,2.85399453]
[1724584545492,6.0293,157.78,157.72,6.8354845]
[1724584545679,6.0293,157.78,157.73,1.5864016]
[1724584545884,6.0293,157.78,157.74,2.853963]
[1724584546189,6.0293,157.78,157.75,1.5864016]
[1724584546389,6.0293,157.78,157.76,1.26755811]
[1724584546592,16.3527,157.79,157.73,1.5864016]
[1724584546891,16.3527,157.79,157.74,1.5864016]
[1724584547190,16.3527,157.79,157.75,1.5864016]
[1724584547381,16.3527,157.79,157.76,1.5864016]
[1724584547581,16.3527,157.79,157.74,1.5864016]
[1724584547884,16.3527,157.79,157.75,1.5864016]
[1724584548082,16.3527,157.79,157.73,45.0]
[1724584548290,16.3527,157.79,157.74,1.586381]
[1724584548495,16.3527,157.79,157.75,1.586381]
[1724584548678,16.3527,157.79,157.76,1.586381]
[1724584548882,16.3527,157.79,157.74,1.586381]
[1724584549090,16.3527,157.79,157.75,1.586381]
[1724584549269,16.3527,157.79,157.76,1.586381]
[1724584549472,16.3527,157.79,157.77,1.586381]
[1724584549672,16.3527,157.79,157.75,1.58622175]
[1724584549889,16.3527,157.79,157.76,2.85377146]
[1724584550088,16.3527,157.79,157.77,1.58622175]
[1724584550270,16.3527,157.79,157.78,1.58609689]
[1724584550784,16.3527,157.79,157.73,1.58609689]
[1724584550987,16.3527,157.79,157.74,1.58609689]
[1724584551290,16.3527,157.79,157.75,1.58615238]
[1724584551673,16.3527,157.79,157.76,1.58615238]
[1724584551874,16.3527,157.79,157.77,1.58615238]
[1724584552071,16.3527,157.79,157.78,1.58615238]
[1724584552792,16.3527,157.79,157.73,1.58615238]
[1724584553006,16.3527,157.79,157.74,1.58615238]
[1724584553209,16.3527,157.79,157.75,1.58615238]
[1724584553387,16.3527,157.79,157.76,1.58615238]
[1724584553574,16.3527,157.79,157.77,1.58615238]
[1724584553776,16.3527,157.79,157.78,1.58615238]
[1724584554605,16.3527,157.79,157.72,10.24330654]
[1724584554893,16.3527,157.79,157.78,1.58613579]
[1724584557299,6.5289,157.78,157.73,1.58613579]
[1724584557496,1.39356982,157.77,157.74,1.58613579]
[1724584557797,1.39356982,157.77,157.75,1.58613579]
[1724584557994,1.39356982,157.77,157.76,1.58613579]
[1724584558381,7.92246982,157.78,157.76,1.58613579]
[1724584558581,7.92246982,157.78,157.7,6.623556]
[1724584558793,6.5289,157.78,157.71,8.95343463]
[1724584558994,6.5289,157.78,157.71,7.36693058]
[1724584559201,6.5289,157.78,157.72,1.58650398]
[1724584559503,6.5289,157.78,157.73,1.58650398]
[1724584559677,6.5289,157.78,157.74,1.58650398]
[1724584559879,6.5289,157.78,157.75,1.58650398]
[1724584560078,6.5289,157.78,157.76,1.58650398]
[1724584560383,7.92246982,157.78,157.77,1.58650398]
[1724584560591,52.92246982,157.78,157.71,7.36693058]
[1724584560795,45.0,157.77,157.72,1.58664624]
[1724584560990,45.0,157.77,157.73,1.58672743]
[1724584561306,45.0,157.77,157.74,1.58672743]
[1724584561497,45.0,157.77,157.75,1.58672743]
[1724584561677,45.0,157.77,157.69,1.26806792]
[1724584562002,45.0,157.77,157.7,1.5866327]
[1724584562171,45.0,157.77,157.71,1.5866327]
[1724584562379,45.0,157.77,157.72,1.5866327]
[1724584562682,45.0,157.77,157.73,1.5866327]
[1724584562881,45.0,157.77,157.74,1.5866327]
[1724584563185,45.0,157.77,157.75,1.58668538]
[1724584563395,45.0,157.77,157.69,1.26806792]
[1724584563698,45.0,157.77,157.69,1.26810075]
[1724584564214,45.0,157.77,157.69,1.26810167]
[1724584567586,6.5289,157.78,157.7,1.26810226]
[1724584567781,1.39356982,157.77,157.69,7.36693058]
[1724584567979,6.5289,157.78,157.7,1.2679373]
[1724584568178,6.5289,157.78,157.71,7.36693058]
[1724584570307,7.92246982,157.78,157.71,7.36693058]
[1724584570979,6.5289,157.78,157.72,1.14326566]
[1724584572510,6.5289,157.78,157.73,6.8811212]
[1724584572807,6.5289,157.78,157.74,6.8811212]
[1724584572981,6.5289,157.78,157.75,6.8811212]
[1724584573184,6.5289,157.78,157.72,6.8811212]
[1724584573382,6.5289,157.78,157.73,6.8811212]
[1724584573697,6.5289,157.78,157.74,6.8811212]
[1724584573898,6.5289,157.78,157.75,6.8811212]
[1724584574097,6.5289,157.78,157.76,6.8811212]
[1724584574703,6.5289,157.78,157.72,8.14749182]
[1724584574884,6.5289,157.78,157.73,7.36693058]
[1724584575085,6.5289,157.78,157.74,1.26756236]
[1724584575879,6.5289,157.78,157.73,7.36693058]
[1724584576504,6.5289,157.78,157.7,15.864]
[1724584578214,6.5289,157.78,157.7,23.23093058]
[1724584579298,6.5289,157.78,157.7,7.36693058]
[1724584580316,6.5289,157.78,157.73,6.29751797]
[1724584580517,6.5289,157.78,157.74,8.63457833]
[1724584581625,6.5289,157.78,157.74,7.36693058]
[1724584582503,6.5289,157.78,157.7,6.62400469]
[1724584582820,6.5289,157.78,157.71,45.0]
[1724584583195,6.5289,157.78,157.7,13.99093527]
[1724584583594,6.5289,157.78,157.71,30.0]
[1724584583913,1.39356982,157.77,157.71,30.0]
[1724584584420,1.39356982,157.76,157.7,13.99093527]
[1724584586006,1.39356982,157.76,157.71,4.16274881]
[1724584586215,1.39356982,157.76,157.72,4.16274881]
[1724584586421,1.39356982,157.76,157.73,4.16274881]
[1724584586625,45.0,157.77,157.71,1.26807927]
[1724584586808,45.0,157.77,157.72,4.16263433]
[1724584587014,45.0,157.77,157.73,4.16263433]
[1724584587208,45.0,157.77,157.74,4.16263433]
[1724584587407,45.0,157.77,157.71,8.63500985]
[1724584587605,6.5289,157.78,157.71,8.63500985]
[1724584588425,6.5289,157.78,157.71,7.36693058]
[1724584588426,7.92246982,157.78,157.71,7.36693058]
[1724584589134,7.92246982,157.78,157.72,2.06082691]
[1724584589317,7.92246982,157.78,157.73,2.06082691]
[1724584589518,7.92246982,157.78,157.74,2.06082691]
[1724584589725,7.92246982,157.78,157.75,2.06082691]
[1724584590037,7.92246982,157.78,157.71,7.36693058]
[1724584590224,6.5289,157.78,157.72,2.06091278]
[1724584590422,6.5289,157.78,157.73,2.06091278]
[1724584590631,6.5289,157.78,157.74,2.06091278]
[1724584590813,6.5289,157.78,157.75,2.06091278]
[1724584591010,6.5289,157.78,157.71,7.36693058]
[1724584591235,6.5289,157.78,157.72,2.06111064]
[1724584591540,6.5289,157.78,157.73,2.06111064]
[1724584591836,6.5289,157.78,157.71,7.36693058]
[1724584592433,7.92246982,157.78,157.71,7.36693058]
[1724584592632,6.5289,157.78,157.72,1.26787061]
[1724584592812,6.5289,157.78,157.71,7.36693058]
[1724584593927,6.5289,157.78,157.72,1.26785093]
[1724584594938,6.5289,157.78,157.71,7.36693058]
[1724584595442,7.92246982,157.78,157.71,7.36693058]
[1724584595742,7.92246982,157.78,157.7,6.62400469]
[1724584604931,21.7453,157.76,157.7,6.62400469]
[1724584605134,46.39356982,157.75,157.67,7.36693058]
[1724584605937,45.0,157.75,157.67,7.36693058]
[1724584606338,1.39356982,157.74,157.67,7.36693058]
[1724584610415,1.39356982,157.74,157.68,3.98853486]
[1724584610620,1.39356982,157.74,157.69,3.98853486]
[1724584610935,1.39356982,157.74,157.7,3.98853486]
[1724584611241,1.39356982,157.74,157.71,3.98853486]
[1724584611545,6.1734,157.72,157.68,3.98853486]
[1724584611852,16.96546982,157.71,157.69,3.98853486]
[1724584612030,1.39356982,157.7,157.66,3.98853486]
[1724584612230,1.39356982,157.7,157.67,3.98853486]
[1724584612428,1.39356982,157.7,157.68,3.98853486]
[1724584612627,1.39356982,157.7,157.65,3.98853486]
[1724584612832,1.39356982,157.7,157.66,3.98853486]
[1724584613016,1.39356982,157.7,157.67,3.98853486]
[1724584613234,1.39356982,157.7,157.68,3.98853486]
[1724584613542,1.39356982,157.7,157.65,3.98853486]
[1724584613722,1.39356982,157.7,157.66,3.98853486]
[1724584614036,1.39356982,157.7,157.67,3.98853486]
[1724584614243,1.39356982,157.7,157.64,3.98853486]
[1724584614426,1.39356982,157.7,157.65,3.98853486]
[1724584614628,1.39356982,157.7,157.66,3.98853486]
[1724584614846,1.39356982,157.7,157.67,3.98853486]
[1724584615151,1.39356982,157.7,157.64,3.98853486]
[1724584615345,1.39356982,157.7,157.65,3.98853486]
[1724584615643,1.39356982,157.7,157.66,3.98853486]
[1724584615821,1.39356982,157.7,157.67,3.98853486]
[1724584616018,1.39356982,157.7,157.64,3.98853486]
[1724584616237,1.39356982,157.7,157.65,3.98853486]
[1724584616449,1.39356982,157.7,157.66,3.98853486]
[1724584616618,1.39356982,157.7,157.65,3.98853486]
[1724584616828,1.39356982,157.7,157.66,3.98853486]
[1724584617027,1.39356982,157.7,157.65,3.98853486]
[1724584617323,1.39356982,157.7,157.66,3.98853486]
[1724584617544,1.39356982,157.7,157.65,3.98853486]
[1724584617730,1.39356982,157.7,157.66,3.98853486]
[1724584617929,1.39356982,157.7,157.65,3.98853486]
[1724584618143,1.39356982,157.7,157.66,3.98853486]
[1724584618427,1.39356982,157.7,157.65,3.98853486]
[1724584618628,1.39356982,157.7,157.66,3.98853486]
[1724584618942,1.39356982,157.7,157.65,3.98853486]
[1724584619146,1.39356982,157.7,157.66,3.98853486]
[1724584619332,1.39356982,157.7,157.65,3.98853486]
[1724584619942,46.39356982,157.7,157.65,3.98853486]
[1724584620548,1.39356982,157.69,157.65,3.98853486]
[1724584620748,1.39356982,157.69,157.65,3.99535807]
[1724584622167,15.0784,157.67,157.63,3.99535807]
[1724584622454,1.39356982,157.66,157.61,3.99535807]
[1724584622655,1.39356982,157.66,157.62,3.99535807]
[1724584622867,1.39356982,157.66,157.63,3.99535807]
[1724584623154,1.39356982,157.66,157.61,3.99535807]
[1724584623357,6.5632,157.65,157.61,3.99535807]
[1724584623652,1.39356982,157.64,157.62,1.58759826]
[1724584623856,1.39356982,157.64,157.63,1.58759826]
[1724584624240,62.04416982,157.64,157.58,10.0]
[1724584624448,62.04416982,157.64,157.59,1.58762807]
[1724584624758,1.39356982,157.63,157.6,1.58762807]
[1724584624937,1.39356982,157.63,157.61,1.58762807]
[1724584625138,1.39356982,157.63,157.59,1.58762807]
[1724584625533,1.39356982,157.63,157.6,1.58762807]
[1724584625752,1.39356982,157.63,157.59,1.58762807]
[1724584625953,1.39356982,157.63,157.6,1.58762807]
[1724584626248,1.39356982,157.63,157.59,1.58762807]
[1724584626445,1.39356982,157.63,157.6,1.58762807]
[1724584626757,1.39356982,157.63,157.59,1.58762807]
[1724584627459,15.6506,157.61,157.58,10.0]
[1724584627762,46.39356982,157.6,157.58,10.0]
[1724584628338,6.5632,157.59,157.58,10.0]
[1724584628530,52.95676982,157.59,157.58,10.0]
[1724584629332,52.95676982,157.59,157.49,1.58810159]
[1724584629535,45.0,157.58,157.51,5.97304169]
[1724584630971,6.5632,157.59,157.51,5.97304169]
[1724584631151,7.95676982,157.59,157.51,5.97304169]
[1724584631340,7.95676982,157.59,157.52,1.26944776]
[1724584631341,6.5632,157.59,157.52,1.26944776]
[1724584631662,6.5632,157.59,157.53,5.97304169]
[1724584631837,6.5632,157.59,157.54,1.2692561]
[1724584632239,6.5632,157.59,157.53,5.97304169]
[1724584632847,6.5632,157.59,157.54,1.26925585]
[1724584634448,6.5632,157.59,157.55,1.26925446]
[1724584635545,6.5632,157.59,157.54,1.26919688]
[1724584635747,6.5632,157.59,157.55,1.2691968]
[1724584636655,6.5632,157.59,157.5,1.58792996]
[1724584636852,6.5632,157.59,157.51,1.26919845]
[1724584637057,6.5632,157.59,157.52,1.26919749]
[1724584637461,15.6506,157.61,157.52,62.58419749]
[1724584637651,15.6506,157.61,157.53,1.58792996]
[1724584637851,15.6506,157.61,157.54,1.26916752]
[1724584638052,15.6506,157.61,157.55,1.26916821]
[1724584638955,15.6506,157.61,157.53,2.85710968]
[1724584639355,15.6506,157.61,157.53,9.76674719]
[1724584640663,15.6506,157.61,157.53,2.85710968]
[1724584641260,15.6506,157.61,157.53,1.58792996]
[1724584641485,15.6506,157.61,157.52,16.315]
[1724584643484,1.39356982,157.6,157.53,1.58793144]
[1724584643774,46.39356982,157.6,157.49,35.32029125]
[1724584643991,46.39356982,157.6,157.49,28.99391435]
[1724584644194,46.39356982,157.6,157.49,22.08186732]
[1724584645064,6.4281,157.59,157.49,22.08186732]
[1724584645376,46.39356982,157.58,157.49,22.08186732]
[1724584645566,1.39356982,157.57,157.49,22.08186732]
[1724584645785,45.0,157.58,157.49,28.05490901]
[1724584646273,1.39356982,157.57,157.49,28.05490901]
[1724584647458,1.39356982,157.57,157.49,22.08186732]
[1724584648470,1.39356982,157.57,157.45,25.79177435]
[1724584648677,1.39356982,157.57,157.47,6.6345048]
[1724584649180,1.39356982,157.57,157.47,12.60754649]
[1724584650791,1.39356982,157.57,157.47,6.6345048]
[1724584653885,21.2929,157.56,157.47,6.6345048]
[1724584654077,45.0,157.55,157.47,6.6345048]
[1724584654391,1.39356982,157.54,157.47,6.6345048]
[1724584654907,1.39356982,157.54,157.46,2.06914256]
[1724584655101,1.39356982,157.54,157.43,6.63597323]
[1724584655396,1.39356982,157.54,157.44,2.06914256]
[1724584655769,1.39356982,157.54,157.43,6.63597323]
[1724584656072,1.39356982,157.54,157.43,8.70511579]
[1724584656266,1.39356982,157.54,157.43,6.63597323]
[1724584656463,1.39356982,157.54,157.43,8.70511579]
[1724584656667,1.39356982,157.54,157.43,6.63597323]
[1724584657001,6.0368,157.53,157.43,8.70511579]
[1724584657198,46.39356982,157.52,157.43,6.63597323]
[1724584657376,1.39356982,157.51,157.43,6.63597323]
[1724584663404,1.39356982,157.51,157.43,8.70754479]
[1724584663597,1.39356982,157.51,157.43,6.63597323]